bitfinex-derivatives/quotes_BNBF0:USTF0_20250330
["timestamp","ask_amount","ask_price","bid_price","bid_amount"]
[1743353751653,0.33336667,599.94,598.95,2.5305137]
[1743353752853,0.33336667,599.94,598.84,0.29026245]
[1743353754857,2.70036667,599.94,598.79,0.33400691]
[1743353755359,4.28936667,599.94,598.84,0.29033388]
[1743353755858,5.41536667,599.94,598.84,0.29033388]
[1743353757257,1.48795906,599.93,598.84,0.29033388]
[1743353757459,0.33337778,599.92,598.84,0.29033388]
[1743353758561,1.82099349,599.92,598.84,0.29033388]
[1743353760861,1.82099349,599.92,598.79,0.33400691]
[1743353761265,1.82099349,599.92,598.84,0.29035811]
[1743353761757,1.82099349,599.92,598.79,0.33400691]
[1743353764462,0.33337778,599.92,598.79,0.33400691]
[1743353773471,1.82056352,599.92,598.79,0.33400691]
[1743353774374,0.33337778,599.92,598.79,0.33400691]
[1743353774672,1.82056352,599.92,598.79,0.33400691]
[1743353775066,1.20715793,599.91,598.79,0.33400691]
[1743353775273,0.33338889,599.9,598.79,0.33400691]
[1743353775471,4.20013174,599.9,598.79,0.33400691]
[1743353775674,5.07390078,599.89,598.79,0.33400691]
[1743353775872,4.20014286,599.88,598.79,0.33400691]
[1743353776172,7.91345135,599.87,598.79,0.33400691]
[1743353776372,5.43962037,599.86,598.79,0.33400691]
[1743353776572,2.39424894,599.85,598.38,2.5305137]
[1743353776873,1.48628734,599.84,598.39,0.33423018]
[1743353777175,1.48628734,599.83,598.39,0.33423018]
[1743353777372,0.33343892,599.81,598.39,0.33423018]
[1743353777572,1.48628734,599.8,598.39,0.33423018]
[1743353777773,1.48628734,599.79,598.39,0.33423018]
[1743353777974,1.48628734,599.78,598.39,0.33423018]
[1743353778174,1.48628734,599.77,598.39,0.33423018]
[1743353778369,1.81975406,599.76,598.39,0.33423018]
[1743353778569,1.81975962,599.75,598.39,0.33423018]
[1743353778775,1.48628734,599.74,598.39,0.33423018]
[1743353778973,1.81977074,599.73,598.39,0.33423018]
[1743353779175,0.33349452,599.71,598.39,0.33423018]
[1743353779374,1.48628734,599.7,598.39,0.33423018]
[1743353779676,1.81979298,599.69,598.39,0.33423018]
[1743353779975,1.20715793,599.74,598.39,0.33423018]
[1743353779976,0.33351676,599.67,598.39,0.33423018]
[1743353780172,1.48628734,599.66,598.39,0.33423018]
[1743353780376,1.640305,599.57,597.57,2.5305137]
[1743353780577,1.640305,599.45,598.28,0.29069525]
[1743353780877,5.50465209,599.44,597.59,0.33467762]
[1743353781176,1.640305,599.36,597.59,0.33467762]
[1743353781377,1.640305,599.34,597.59,0.33467762]
[1743353781576,1.64468781,599.31,597.59,0.33467762]
[1743353781877,3.86434709,599.3,597.59,0.33467762]
[1743353782177,4.76747167,599.29,597.6,0.29076325]
[1743353782378,5.435232,599.28,597.6,0.29076325]
[1743353782573,5.435232,599.27,597.6,0.29076325]
[1743353782776,3.13859781,599.3,597.6,0.29076325]
[1743353782777,5.435232,599.26,597.6,0.29076325]
[1743353782972,5.435232,599.25,597.62,0.33466082]
[1743353783173,5.435232,599.24,597.62,0.33466082]
[1743353783368,5.435232,599.23,597.62,0.33466082]
[1743353783575,5.76899923,599.22,597.62,0.33466082]
[1743353783879,4.19811989,599.21,597.62,0.33466082]
[1743353784077,1.48628734,599.2,597.62,0.33466082]
[1743353784374,1.47426405,599.19,597.62,0.33466082]
[1743353784571,1.47426405,599.18,597.62,0.33466082]
[1743353784771,1.47426405,599.17,597.62,0.33466082]
[1743353784974,1.47426405,599.16,597.62,0.33466082]
[1743353785169,3.13859781,599.18,597.62,0.33466082]
[1743353785170,2.68142198,599.15,597.62,0.33466082]
[1743353785369,1.47426405,599.14,597.62,0.33466082]
[1743353785570,1.47426405,599.13,597.62,0.33466082]
[1743353785775,1.20715793,599.15,597.62,0.33466082]
[1743353785976,1.4736908,599.14,597.62,0.33466082]
[1743353786176,1.20715793,599.12,597.62,0.33466082]
[1743353786772,0.3337728,599.21,597.62,0.33466082]
[1743353786773,1.20715793,599.11,597.62,0.33466082]
[1743353787579,1.467,599.1,597.62,0.33466082]
[1743353790875,1.20715793,599.09,597.62,0.33466082]
[1743353791682,1.46987854,599.08,597.62,0.33466082]
[1743353791883,2.67703647,599.08,597.62,0.33466082]
[1743353792083,0.3338508,599.07,597.62,0.33466082]
[1743353792476,2.67703647,599.06,597.62,0.33466082]
[1743353792681,1.20715793,599.06,597.62,0.33466082]
[1743353792883,2.67703647,599.06,597.62,0.33466082]
[1743353793079,1.20715793,599.05,597.62,0.33466082]
[1743353794084,1.20715793,599.04,597.62,0.33466082]
[1743353794479,1.20715793,599.03,597.62,0.33466082]
[1743353795085,1.20715793,599.02,597.62,0.33466082]
[1743353796383,1.20715793,599.01,597.62,0.33466082]
[1743353796787,1.556,599.0,597.62,0.33466082]
[1743353797288,1.20715793,598.99,597.62,0.33466082]
[1743353798102,1.20715793,598.98,597.62,0.33466082]
[1743353798699,1.20715793,598.97,597.62,0.33466082]
[1743353799298,1.20715793,598.96,597.62,0.33466082]
[1743353800300,1.556,599.0,597.62,0.33466082]
[1743353800799,1.1910031,598.99,597.62,0.33466082]
[1743353801397,1.1910031,598.98,597.62,0.33466082]
[1743353802101,1.1910031,598.97,597.62,0.33466082]
[1743353802793,1.1910031,598.96,597.62,0.33466082]
[1743353803198,1.556,599.0,597.62,0.33466082]
[1743353803398,1.46790294,598.99,597.62,0.33466082]
[1743353803701,1.46790294,598.98,597.62,0.33466082]
[1743353803902,1.46790294,598.97,597.62,0.33466082]
[1743353804396,2.65918544,598.98,597.62,0.33466082]
[1743353804700,1.90531061,598.99,597.62,0.33466082]
[1743353804701,1.1912825,598.96,597.62,0.33466082]
[1743353805499,1.1912825,598.95,597.62,0.33466082]
[1743353806101,1.803,598.95,597.62,0.33466082]
[1743353811203,2.929,598.95,597.62,0.33466082]
[1743353812511,4.552,598.95,597.62,0.33466082]
[1743353820511,4.552,598.95,597.76,2.5305137]
[1743353821014,4.552,598.95,597.78,0.33457124]
[1743353822719,4.552,598.95,597.85,2.5305137]
[1743353822918,4.552,598.95,597.87,0.33452088]
[1743353835119,5.935,598.95,597.87,0.33452088]
[1743353835918,5.935,598.95,597.95,2.5305137]
[1743353836221,5.935,598.95,597.97,0.33446493]
[1743353837528,5.935,598.95,597.99,2.5305137]
[1743353837824,5.935,598.95,598.01,0.33444256]
[1743353838925,5.935,598.95,598.08,2.5305137]
[1743353839824,5.935,598.95,598.09,0.33439783]
[1743353840124,5.935,598.95,598.15,2.5305137]
[1743353840324,5.935,598.95,598.16,0.3343587]
[1743353843123,5.935,598.95,598.24,2.5305137]
[1743353843327,4.132,598.95,598.24,2.5305137]
[1743353843524,4.132,598.95,598.25,0.33430839]
[1743353843930,2.509,598.95,598.25,0.33430839]
[1743353846124,3.849,598.95,598.25,0.33430839]
[1743353847424,5.55,598.95,598.25,0.33430839]
[1743353850832,5.55,598.95,598.59,2.5305137]
[1743353851233,1.62850154,600.13,598.59,2.5305137]
[1743353851434,0.29052658,599.84,598.59,2.5305137]
[1743353851635,0.3334278,599.83,598.59,2.5305137]
[1743353851838,0.3334278,599.83,598.57,2.5305137]
[1743353853432,1.4634278,599.83,598.57,2.5305137]
[1743353854036,1.4634278,599.83,598.67,2.5305137]
[1743353854739,4.4294278,599.83,598.67,2.5305137]
[1743353855140,5.6684278,599.83,598.67,2.5305137]
[1743353855843,5.6684278,599.83,598.41,2.82091421]
[1743353856045,5.6684278,599.83,598.42,0.33421342]
[1743353862749,1.20533251,599.82,598.42,0.33421342]
[1743353862945,2.69026706,599.82,598.42,0.33421342]
[1743353863456,0.33343892,599.81,598.42,0.33421342]
[1743353863754,1.20533251,599.8,598.42,0.33421342]
[1743353863955,0.33345004,599.79,598.42,0.33421342]
[1743353866858,5.335,599.83,598.6,2.5305137]
[1743353867054,5.335,599.83,598.62,0.33410176]
[1743353894285,5.335,599.83,598.79,2.5305137]
[1743353894588,5.335,599.83,598.8,0.33400133]
[1743353897095,5.335,599.83,598.93,2.5305137]
[1743353897288,5.335,599.83,598.94,0.33392326]
[1743353898892,5.335,599.83,599.19,2.5305137]
[1743353899685,5.335,599.83,598.94,0.33392326]
[1743353899686,5.335,599.83,599.24,2.5305137]
[1743353901292,5.335,599.83,599.32,2.5305137]
[1743353902493,5.335,599.83,599.37,2.5305137]
[1743353903786,5.335,599.83,599.17,2.5305137]
[1743353905088,5.335,599.83,599.1,2.5305137]
[1743353906191,5.335,599.83,599.11,0.33382851]
[1743353908095,5.335,599.83,599.11,2.86434221]
[1743353909396,5.335,599.83,599.11,0.33382851]
[1743353920502,5.335,599.83,599.15,2.5305137]
[1743353921503,5.335,599.83,599.14,2.5305137]
[1743353923204,5.335,599.83,599.11,0.33382851]
[1743353923604,5.335,599.83,599.12,0.29020314]
[1743353924706,5.335,599.83,599.42,2.5305137]
[1743353926610,5.335,599.83,599.46,2.5305137]
[1743353928811,5.335,599.83,599.47,2.5305137]
[1743353930016,5.335,599.83,599.5,2.5305137]
[1743353932112,5.335,599.83,599.14,2.5305137]
[1743353932309,5.335,599.83,599.37,0.29015959]
[1743353932814,5.335,599.83,599.14,2.5305137]
[1743353933516,5.335,599.83,599.27,2.5305137]
[1743353934709,5.335,599.83,599.28,2.5305137]
[1743353937316,5.335,599.83,599.33,2.5305137]
[1743353938617,5.335,599.83,599.31,2.5305137]
[1743353941118,5.335,599.83,599.45,2.5305137]
[1743353942914,5.335,599.83,599.41,2.5305137]
[1743353944424,5.335,599.83,599.38,2.5305137]
[1743353945721,5.335,599.83,599.39,2.5305137]
[1743353946625,5.335,599.83,599.33,0.29016806]
[1743353947025,5.335,599.83,599.27,2.5305137]
[1743353947427,5.335,599.83,599.33,0.29018499]
[1743353950226,5.335,599.83,599.32,2.5305137]
[1743353950528,5.335,599.83,599.33,0.29015233]
[1743353953127,5.335,599.83,599.13,0.33381736]
[1743353953530,5.335,599.83,599.33,0.29015838]
[1743353953728,5.335,599.83,599.13,0.33381736]
[1743353955134,5.335,599.83,599.14,0.29016685]
[1743353955327,5.335,599.83,599.15,0.33380622]
[1743353958333,5.335,599.83,599.4,2.5305137]
[1743353960238,5.335,599.83,599.48,2.5305137]
[1743353961234,1.20632553,599.83,599.48,2.5305137]
[1743353961431,0.29012572,600.65,599.48,2.5305137]
[1743353961631,0.33297815,600.64,599.48,2.5305137]
[1743353962331,0.33297815,600.64,599.56,2.5305137]
[1743353963635,0.33297815,600.64,599.53,2.5305137]
[1743353964431,2.56881859,600.63,599.53,2.5305137]
[1743353964736,1.69298924,600.62,599.53,2.5305137]
[1743353965034,0.33299478,600.61,599.34,0.29000725]
[1743353966038,3.53572311,600.61,599.34,0.29000725]
[1743353966837,0.33299478,600.61,599.34,0.29000725]
[1743353967842,1.49,600.6,599.34,0.29000725]
[1743353968140,5.14248384,600.59,599.15,0.33380622]
[1743353968341,6.93972936,600.58,599.34,0.29007977]
[1743353968644,7.2725435,600.57,599.15,0.33380622]
[1743353968935,6.93952654,600.56,599.15,0.33380622]
[1743353969141,7.27255459,600.55,599.15,0.33380622]
[1743353969339,7.27256014,600.54,599.15,0.33380622]
[1743353969541,6.60613096,600.53,599.15,0.33380622]
[1743353969741,5.14236603,600.52,599.15,0.33380622]
[1743353970042,5.14237158,600.51,599.15,0.33380622]
[1743353970242,2.7457834,600.5,599.16,0.29010274]
[1743353970437,1.8309324,600.49,599.17,0.33379508]
[1743353970642,1.83093794,600.48,599.17,0.33379508]
[1743353970842,1.83094349,600.47,599.17,0.33379508]
[1743353971036,1.83094904,600.46,599.17,0.33379508]
[1743353971241,1.83095459,600.45,599.17,0.33379508]
[1743353971543,1.83096013,600.44,599.17,0.33379508]
[1743353971745,1.49787107,600.43,599.17,0.33379508]
[1743353971941,1.49787107,600.42,599.17,0.33379508]
[1743353972141,1.49787107,600.41,599.17,0.33379508]
[1743353972339,1.49787107,600.4,599.17,0.33379508]
[1743353972543,1.49787107,600.39,599.17,0.33379508]
[1743353972742,1.49787107,600.38,599.17,0.33379508]
[1743353972943,1.49787107,600.37,599.17,0.33379508]
[1743353973142,1.49787107,600.36,599.17,0.33379508]
[1743353973345,1.49787107,600.35,599.17,0.33379508]
[1743353973544,3.20272833,600.38,599.17,0.33379508]
[1743353973743,3.20272833,600.34,599.17,0.33379508]
[1743353974450,3.20272833,600.33,599.17,0.33379508]
[1743353975040,5.03312,600.32,599.17,0.33379508]
[1743353975246,3.53588398,600.32,599.17,0.33379508]
[1743353975646,1.23181859,600.31,599.17,0.33379508]
[1743353976241,1.23181859,600.3,599.17,0.33379508]
[1743353977141,1.23181859,600.29,599.17,0.33379508]
[1743353977541,1.23181859,600.28,599.17,0.33379508]
[1743353978141,1.23181859,600.27,599.17,0.33379508]
[1743353978943,1.23181859,600.26,599.17,0.33379508]
[1743353979850,1.23181859,600.25,599.17,0.33379508]
[1743353980350,1.23181859,600.24,599.17,0.33379508]
[1743353981147,1.23181859,600.23,599.17,0.33379508]
[1743353981847,1.23181859,600.22,599.17,0.33379508]
[1743353982451,1.23181859,600.22,599.17,2.86430878]
[1743353982651,0.33315565,600.32,599.17,2.86430878]
[1743353983746,0.33315565,600.32,599.17,0.33379508]
[1743353985250,0.33315565,600.32,599.17,2.86430878]
[1743353987746,1.79515565,600.32,599.17,2.86430878]
[1743353988753,1.79515565,600.32,599.2,2.5305137]
[1743353989049,3.22715565,600.32,599.2,2.5305137]
[1743353990852,1.23181859,600.31,599.2,2.5305137]
[1743353991254,0.33316674,600.3,599.2,2.5305137]
[1743353991856,1.23181859,600.29,599.2,2.5305137]
[1743353992458,1.23181859,600.28,599.19,0.29013782]
[1743353993060,1.23181859,600.27,599.19,0.29013782]
[1743353993853,1.23181859,600.26,599.19,0.29013782]
[1743353994555,1.23181859,600.26,599.24,2.5305137]
[1743353995058,1.23181859,600.25,599.24,2.5305137]
[1743353995561,1.23181859,600.24,599.24,2.5305137]
[1743353995755,1.23181859,600.24,599.25,2.5305137]
[1743353996160,1.23181859,600.23,599.25,2.5305137]
[1743353996659,1.619,600.22,599.25,2.5305137]
[1743353996859,2.85081859,600.22,599.25,2.5305137]
[1743353997461,2.85081859,600.22,599.23,2.5305137]
[1743353997462,1.23181859,600.21,599.23,2.5305137]
[1743353997962,1.23181859,600.2,599.23,2.5305137]
[1743353998760,1.619,600.22,599.23,2.5305137]
[1743353998960,1.619,600.22,599.33,2.5305137]
[1743353999564,1.27158024,600.21,599.33,2.5305137]
[1743353999965,1.27158024,600.21,599.32,2.5305137]
[1743354000168,1.27158024,600.2,599.32,2.5305137]
[1743354001074,1.27158024,600.19,599.32,2.5305137]
[1743354001266,1.27158024,600.19,599.24,2.5305137]
[1743354001570,1.27158024,600.19,599.25,0.29015717]
[1743354002172,1.619,600.22,599.25,0.29015717]
[1743354002173,1.27158024,600.18,599.25,0.29015717]
[1743354002867,3.24248998,600.17,599.25,0.29015717]
[1743354003370,1.97090974,600.16,599.25,0.29015717]
[1743354003672,3.24248998,600.16,599.25,0.29015717]
[1743354004069,3.24248998,600.16,599.17,0.33379508]
[1743354004270,3.57574,600.15,599.17,0.33379508]
[1743354004467,0.33325557,600.14,599.25,0.29019588]
[1743354004672,0.33325557,600.14,599.17,0.33379508]
[1743354004867,1.27158024,600.13,599.17,0.33379508]
[1743354005572,0.33325557,600.14,599.18,0.2901983]
[1743354007175,0.33325557,600.14,599.17,0.33379508]
[1743354007371,0.33325557,600.14,599.18,0.29017894]
[1743354010077,0.33325557,600.14,599.17,0.33379508]
[1743354010477,0.33325557,600.14,599.18,0.29018015]
[1743354013076,0.33325557,600.14,599.17,0.33379508]
[1743354013577,0.33325557,600.14,599.18,0.29015354]
[1743354015684,0.33325557,600.14,599.33,2.5305137]
[1743354017079,0.33325557,600.14,599.31,2.5305137]
[1743354018002,1.361,600.13,599.31,2.5305137]
[1743354018382,1.361,600.13,599.32,2.5305137]
[1743354019685,1.254,600.12,599.32,2.5305137]
[1743354019881,1.254,600.12,599.31,2.5305137]
[1743354021887,1.6,600.11,599.18,0.62394305]
[1743354022087,1.6,600.11,599.18,0.33378951]
[1743354022490,1.6,600.11,599.18,0.62396845]
[1743354022890,1.407,600.1,599.18,0.62396845]
[1743354026799,1.407,600.1,599.25,2.5305137]
[1743354028393,1.407,600.1,599.28,2.5305137]
[1743354029797,1.407,600.1,599.21,0.29015475]
[1743354031401,1.407,600.1,599.22,2.5305137]
[1743354033098,1.407,600.1,599.36,2.5305137]
[1743354034903,1.6,600.11,599.27,0.29011484]
[1743354035100,1.6,600.11,599.27,0.62385422]
[1743354037206,1.6,600.11,599.27,0.33373938]
[1743354037409,1.6,600.11,599.27,0.62384454]
[1743354038005,1.546,600.1,599.27,0.62384454]
[1743354040104,1.546,600.1,599.27,0.33373938]
[1743354040505,1.546,600.1,599.27,0.6238784]
[1743354041806,1.171,600.09,599.27,0.6238784]
[1743354042808,1.171,600.09,599.36,2.5305137]
[1743354044409,1.171,600.09,599.31,0.29010879]
[1743354046109,1.171,600.09,599.3,2.5305137]
[1743354046503,1.171,600.09,599.31,0.29011847]
[1743354049207,1.171,600.09,599.27,2.86425308]
[1743354049612,1.171,600.09,599.31,0.29012209]
[1743354052106,1.171,600.09,599.29,2.5305137]
[1743354052512,1.171,600.09,599.31,0.29013661]
[1743354052815,1.171,600.09,599.33,2.5305137]
[1743354053218,1.555,600.08,599.33,2.5305137]
[1743354054317,1.555,600.08,599.32,2.5305137]
[1743354055218,1.555,600.08,599.27,0.33373938]
[1743354055219,1.555,600.08,599.34,2.5305137]
[1743354056622,1.555,600.08,599.35,2.5305137]
[1743354058117,1.555,600.08,599.37,2.5305137]
[1743354060324,1.555,600.08,599.33,0.29013782]
[1743354061223,1.555,600.08,599.27,0.33373938]
[1743354061422,1.555,600.08,599.33,0.29014991]
[1743354062825,2.975,600.08,599.33,0.29014991]
[1743354064223,2.975,600.08,599.27,0.33373938]
[1743354064426,2.975,600.08,599.33,0.29011605]
[1743354067328,2.975,600.08,599.3,2.5305137]
[1743354067823,2.975,600.08,599.33,2.5305137]
[1743354068528,2.975,600.08,599.33,2.82062249]
[1743354070134,2.975,600.08,599.33,2.5305137]
[1743354070530,2.975,600.08,599.33,2.82062249]
[1743354072236,4.528,600.08,599.35,2.5305137]
[1743354074038,4.528,600.08,599.34,0.29010395]
[1743354074039,4.528,600.08,599.52,2.5305137]
[1743354075735,4.528,600.08,599.55,2.5305137]
[1743354076739,4.528,600.08,599.42,0.29007977]
[1743354079241,4.528,600.08,599.4,2.5305137]
[1743354079444,4.528,600.08,599.42,0.29006526]
[1743354082541,4.528,600.08,599.68,2.5305137]
[1743354083945,4.528,600.08,599.42,0.29006526]
[1743354083946,4.528,600.08,599.42,2.82057896]
[1743354085043,4.528,600.08,599.42,0.29006526]
[1743354085244,4.528,600.08,599.39,2.5305137]
[1743354085445,4.528,600.08,599.42,0.29011]
[1743354088247,4.528,600.08,599.27,0.33373938]
[1743354088640,4.528,600.08,599.42,0.29011605]
[1743354088841,4.528,600.08,599.27,0.33373938]
[1743354090550,4.528,600.08,599.28,0.29025397]
[1743354090752,4.528,600.08,599.29,0.33372824]
[1743354093448,4.528,600.08,599.29,2.86424194]
[1743354094346,5.953,600.08,599.29,2.86424194]
[1743354094746,5.953,600.08,599.31,2.5305137]
[1743354095249,5.953,600.08,599.32,0.33371153]
[1743354118664,5.953,600.08,599.31,0.29016443]
[1743354121070,5.953,600.08,599.07,2.5305137]
[1743354121476,5.953,600.08,599.27,0.2902225]
[1743354121666,5.953,600.08,598.89,2.5305137]
[1743354122371,5.953,600.08,598.9,0.33394556]
[1743354123473,5.953,600.08,598.9,0.62419469]
[1743354124273,5.953,600.08,598.9,0.33394556]
[1743354124474,5.953,600.08,598.9,0.62419348]
[1743354124669,6.28628889,600.08,598.9,0.62419348]
[1743354124874,0.33329444,600.07,598.9,0.62419348]
[1743354127076,0.33329444,600.07,598.9,0.33394556]
[1743354127581,2.13929444,600.07,598.9,0.62422738]
[1743354127775,3.64029444,600.07,598.9,0.62422738]
[1743354128581,1.55658442,600.06,598.9,0.62422738]
[1743354128780,0.33330555,600.05,598.9,0.62422738]
[1743354130282,0.33330555,600.05,598.9,0.33394556]
[1743354130483,0.33330555,600.05,598.9,0.6242298]
[1743354132585,1.26628444,600.04,598.9,0.6242298]
[1743354132887,1.5996011,600.03,598.9,0.6242298]
[1743354133087,0.33332222,600.02,598.9,0.33394556]
[1743354133382,3.95363984,600.01,598.9,0.62423343]
[1743354133587,1.81813983,600.0,598.9,0.62423343]
[1743354133781,0.33333888,599.99,598.9,0.62423343]
[1743354134181,1.4848065,599.98,598.9,0.62423343]
[1743354134385,1.8181565,599.97,598.9,0.62423343]
[1743354134686,1.81816205,599.96,598.9,0.62423343]
[1743354134889,1.81816761,599.95,598.9,0.62423343]
[1743354135186,1.81817317,599.94,598.9,0.29028787]
[1743354135481,5.77181856,599.93,598.9,0.29028787]
[1743354135685,4.19160553,599.92,598.9,0.29028787]
[1743354135886,1.81818984,599.91,598.9,0.29028787]
[1743354136187,1.4848065,599.9,598.31,2.5305137]
[1743354136382,1.4848065,599.89,598.9,0.29041263]
[1743354136586,0.33340001,599.88,598.9,0.29041263]
[1743354136784,0.33340001,599.88,598.33,0.3342637]
[1743354137180,3.95363984,599.87,598.33,0.3342637]
[1743354137385,1.81821762,599.86,598.33,0.3342637]
[1743354137687,0.33341668,599.85,598.33,0.3342637]
[1743354137886,4.28705652,599.85,598.33,0.3342637]
[1743354138185,1.4848065,599.84,598.33,0.3342637]
[1743354138381,0.3334278,599.83,598.34,0.29044293]
[1743354138589,4.28706764,599.83,598.36,0.33424694]
[1743354138786,1.4848065,599.82,598.36,0.33424694]
[1743354138987,0.33343892,599.81,598.36,0.33424694]
[1743354139187,4.28707876,599.81,598.36,0.33424694]
[1743354139388,1.4811619,599.8,598.36,0.33424694]
[1743354139587,0.33345004,599.79,598.36,0.33424694]
[1743354139782,5.66208988,599.79,598.36,0.33424694]
[1743354139986,1.4811619,599.78,598.36,0.33424694]
[1743354140286,1.81462306,599.77,598.36,0.33424694]
[1743354140487,1.81462862,599.76,598.36,0.33424694]
[1743354140786,1.81463418,599.75,598.36,0.33424694]
[1743354140982,1.81463974,599.74,598.36,0.33424694]
[1743354141187,1.4811619,599.73,598.36,0.33424694]
[1743354141387,0.33347784,599.74,598.36,0.33424694]
[1743354141584,3.95363984,599.72,598.36,0.33424694]
[1743354142184,1.785,599.71,598.36,0.33424694]
[1743354142487,5.73863984,599.71,598.36,0.33424694]
[1743354143084,3.95363984,599.7,598.36,0.33424694]
[1743354143988,3.28667813,599.69,598.36,0.33424694]
[1743354144791,1.26628444,599.68,598.36,0.33424694]
[1743354145491,1.26628444,599.67,598.36,0.33424694]
[1743354145990,1.26628444,599.66,598.36,0.33424694]
[1743354146985,1.26628444,599.65,598.36,0.33424694]
[1743354147388,1.26628444,599.64,598.36,0.33424694]
[1743354148491,1.26628444,599.63,598.36,0.33424694]
[1743354149191,1.785,599.71,598.36,0.33424694]
[1743354150092,1.564,599.7,598.36,0.33424694]
[1743354154396,3.233,599.7,598.36,0.33424694]
[1743354158692,3.233,599.7,598.68,2.5305137]
[1743354158889,3.233,599.7,598.69,0.3340627]
[1743354167293,4.676,599.7,598.83,2.5305137]
[1743354168497,4.676,599.7,598.84,0.33397902]
[1743354169001,4.676,599.7,599.04,2.5305137]
[1743354169299,3.112,599.7,599.04,2.5305137]
[1743354170897,3.112,599.7,599.02,2.5305137]
[1743354172203,3.112,599.7,599.03,0.33387309]
[1743354181204,1.669,599.7,599.03,0.33387309]
[1743354190915,1.669,599.7,598.98,0.29029634]
[1743354193314,1.669,599.7,598.81,2.5305137]
[1743354193518,1.669,599.7,598.98,0.29035084]
[1743354193918,1.669,599.7,598.81,2.5305137]
[1743354194320,1.669,599.7,598.87,2.5305137]
[1743354195221,1.669,599.7,598.8,2.5305137]
[1743354195715,1.669,599.7,598.88,0.29034357]
[1743354195918,1.669,599.7,598.8,2.5305137]
[1743354196515,1.669,599.7,598.81,0.29035205]
[1743354197820,3.0,599.7,598.81,0.29035205]
[1743354199220,3.0,599.7,598.76,2.5305137]
[1743354199421,3.0,599.7,598.81,0.2903569]
[1743354202323,3.0,599.7,598.72,2.5305137]
[1743354202719,3.0,599.7,598.81,0.29036659]
[1743354202925,3.0,599.7,598.72,2.5305137]
[1743354203325,3.0,599.7,598.69,2.5305137]
[1743354203822,3.0,599.7,598.73,0.29036417]
[1743354205226,3.0,599.7,598.69,2.5305137]
[1743354205429,3.0,599.7,598.7,2.5305137]
[1743354205628,3.0,599.7,598.73,0.2903678]
[1743354206731,4.793,599.7,598.73,0.2903678]
[1743354208230,4.793,599.7,598.59,2.5305137]
[1743354208734,4.793,599.7,598.6,0.62449769]
[1743354208934,4.793,599.7,598.61,0.33410734]
[1743354212343,4.793,599.7,598.61,2.86462104]
[1743354214247,4.793,599.7,598.66,2.5305137]
[1743354214447,4.793,599.7,598.66,2.86459314]
[1743354215746,4.793,599.7,598.7,2.5305137]
[1743354217543,4.793,599.7,598.83,2.5305137]
[1743354218951,4.793,599.7,598.87,2.5305137]
[1743354219151,6.052,599.7,598.87,2.5305137]
[1743354220252,6.052,599.7,598.72,2.5305137]
[1743354220253,6.052,599.7,598.83,2.5305137]
[1743354221955,6.052,599.7,598.87,2.5305137]
[1743354223156,6.052,599.7,598.71,2.5305137]
[1743354223455,6.052,599.7,598.79,0.29028908]
[1743354223955,6.052,599.7,598.71,2.5305137]
[1743354224950,6.052,599.7,599.04,2.5305137]
[1743354226353,6.052,599.7,599.0,2.5305137]
[1743354227756,6.052,599.7,598.92,2.5305137]
[1743354229357,6.052,599.7,598.96,2.5305137]
[1743354230950,6.052,599.7,598.9,0.29032056]
[1743354230951,6.052,599.7,598.92,2.5305137]
[1743354232357,6.052,599.7,599.03,2.5305137]
[1743354233554,6.052,599.7,599.1,2.5305137]
[1743354235654,6.052,599.7,598.97,2.82082942]
[1743354238257,6.052,599.7,598.97,2.5305137]
[1743354238459,6.052,599.7,599.01,2.5305137]
[1743354239861,6.052,599.7,598.97,0.29030724]
[1743354244263,6.052,599.7,598.8,2.5305137]
[1743354244459,6.052,599.7,598.97,0.29036174]
[1743354244860,6.052,599.7,598.8,2.5305137]
[1743354245161,6.052,599.7,598.7,2.5305137]
[1743354245557,6.052,599.7,598.71,0.29037386]
[1743354246759,6.052,599.7,598.79,2.5305137]
[1743354248266,6.052,599.7,598.9,2.5305137]
[1743354249267,6.052,599.7,598.96,2.5305137]
[1743354252468,6.052,599.7,599.0,2.5305137]
[1743354253969,6.052,599.7,598.88,2.5305137]
[1743354255573,6.052,599.7,598.87,0.29035569]
[1743354256172,6.052,599.7,598.66,0.33407944]
[1743354256675,6.052,599.7,598.67,0.29040536]
[1743354259172,6.052,599.7,598.66,0.33407944]
[1743354259475,6.052,599.7,598.67,0.29038839]
[1743354260875,6.052,599.7,598.68,2.5305137]